Cogmind - Beta 16 @@@ ROGUE MODE // 2026.02.06 @ 17:24:50 Player: winnking222 Result: Destroyed by 25-LH7(R) with Subdweller Machine Gun Performance ------------- Evolutions (0) 0 Regions Visited (2) 400 Robots Destroyed (27) 135 Value Destroyed (711) 711 Prototype IDs (0) 0 Alien Tech Used (0) 0 Bonus (0) 0 TOTAL SCORE: 1246 Bonus ------- None Cogmind --------- Core Integrity 0/250 Matter 300/300 Energy 90/100 System Corruption 2% Temperature Warm (195) Movement Rolling (115) Ox1 Location -10/Subcaves Parts ------- > --- POWER (1) -------- (None) > --- PROPULSION (2) --- Compact Wheel Subdweller Monowheel > --- UTILITY (2) ------ Improved Heat Sink Medium Storage Unit > --- WEAPON (2) ------- Subdweller Laser Subdweller Laser > --- INVENTORY (10) --- Ion Engine Flight Unit Flight Unit Structural Scanner Subdweller Optics Seismic Detector Assault Rifle Battle Rifle Subdweller Machine Gun Grenade Launcher Peak State ------------ > --- POWER ------------ Light Nuclear Core > --- PROPULSION ------- Compact Wheel Subdweller Monowheel > --- UTILITY ---------- Improved Heat Sink Medium Storage Unit > --- WEAPON ----------- Subdweller Laser Subdweller Laser > --- INVENTORY -------- Ion Engine Flight Unit Flight Unit Structural Scanner Subdweller Optics Seismic Detector Assault Rifle Light Assault Rifle Light Assault Rifle Grenade Launcher [Rating: 15] Favorites ----------- Power Light Nuclear Core Engine Ion Engine Power Core Light Nuclear Core Propulsion Light Treads Treads Light Treads Wheel Compact Wheel Utility Seismic Detector Device Seismic Detector Storage Small Storage Unit Weapon Light Assault Rifle Energy Gun Medium Laser Ballistic Gun Light Assault Rifle Launcher Grenade Launcher Build | -11 -10 -10 ------- Run | Yrd Mat Sub Slots Evolved . | . . . Power . | . . . Propulsion . | . . . Utility . | . . . Weapon . | . . . Parts Attached 21 | 7 8 6 Power 3 | 1 2 . Engine 2 | 1 1 . Core 1 | . 1 . Reactor . | . . . Propulsion 6 | 2 2 2 Treads 4 | 2 1 1 Leg . | . . . Wheel 2 | . 1 1 Hover . | . . . Flight . | . . . Utility 4 | 2 1 1 Device 2 | 1 . 1 Storage 2 | 1 1 . Processor . | . . . Hackware . | . . . Protection . | . . . Artifact . | . . . Weapon 8 | 2 3 3 Energy Gun 3 | 1 . 2 Energy Cannon . | . . . Ballistic Gun 4 | 1 2 1 Ballistic Cannon . | . . . Launcher 1 | . 1 . Special Weapon . | . . . Impact Weapon . | . . . Slashing Weapon . | . . . Piercing Weapon . | . . . Special Melee Weapon . | . . . Unidentified Prototypes . | . . . Parts Lost 8 | . 3 5 Power 1 | . . 1 Propulsion 4 | . 2 2 Utility 1 | . . 1 Weapon 2 | . 1 1 Highest Loss Streak 4 | . 2 4 To Critical Strikes . | . . . Average Backups 7 | 5 7 9 Power 1 | . 1 1 Propulsion 2 | 3 1 2 Utility 1 | . 1 2 Weapon 2 | 1 2 2 Tool/Special . | . . . Unused Backups 12 | . 4 8 Power . | . . . Propulsion 5 | . 3 2 Utility 3 | . . 3 Weapon 4 | . 1 3 Tool/Special . | . . . Average Slot Usage (%) 98 | . 98 98 Engine 3 | . 4 . Core 9 | . 8 14 Treads 19 | . 20 13 Wheel 8 | . 6 12 Device 13 | . 13 14 Storage 14 | . 14 14 Energy Gun 5 | . 4 12 Ballistic Gun 21 | . 23 15 Peak Build Rating 15 | 7 10 15 Average Rating 9 | 5 8 12 On Entrance 5 | . 7 10 Avg Prop Armor Cover (%) 4 | . 4 5 Naked Turns . | . . . Heaviest Build 24 | 15 18 24 Greatest Support 40 | 40 40 40 Greatest Overweight (x) 2 | 1 2 1 Average Overweight (x) . | . . . Largest Inventory Capacity 10 | 8 10 10 Average Capacity 8 | 7 8 10 Most Carried 10 | 7 9 10 Average Carried 7 | 5 7 9 Final Capacity 10 | 8 10 10 Final Carried 10 | 7 9 10 Class Distribution -------------------- 81% | Mutant 18% | Scavenger-Mutant Dominant Class ---------------- Mutant | -10/Materials Scavenger-Mutant | -10/Subcaves Resources | -11 -10 -10 ----------- Run | Yrd Mat Sub Matter Collected 846 | 294 362 190 Remotely . | . . . Salvage Created 898 | 147 521 230 Parts 59 | 15 26 18 Haulers Intercepted 1 | . 1 . Recyclers Shooed . | . . . Parts Field Recycled . | . . . Retrieved Matter . | . . . Parts Self-Destructed 1 | . . 1 Prevented . | . . . Parts Restored . | . . . Kills | -11 -10 -10 ------- Run | Yrd Mat Sub Combat Hostiles Destroyed 19 | . 14 5 Guns 15 | . 10 5 AOE 4 | . 4 . Classes Destroyed 7 | 2 4 1 Tunneler 4 | 4 . . Hauler 1 | . 1 . Recycler 1 | 1 . . Watcher 2 | . 2 . Swarmer 3 | . 3 . Grunt 11 | . 11 . Subdweller 5 | . . 5 Best Kill Streak 5 | 2 5 2 Combat Bots Only 4 | . 4 2 Max Kills in Single Turn 4 | 1 4 1 Gunslinging . | . . . Exploded 3 | . 3 . Melee . | . . . Uniques/NPCs Destroyed . | . . . Combat | -11 -10 -10 -------- Run | Yrd Mat Sub Hostile Shots Fired 94 | . 62 32 Missed 25 | . 20 5 Hits 69 | . 42 27 Projectile 69 | . 42 27 Critical Strikes 2 | . 1 1 Damage Taken 1143 | . 583 560 Core 260 | . 134 126 Absorbed by Shields . | . . . Core Remaining (%) 100 | 100 . . Volleys Fired 85 | 8 55 22 Largest 2 | 2 2 2 Hottest 120 | 70 70 120 Shots Fired 166 | 16 107 43 Gun 164 | 16 105 43 Cannon . | . . . Launcher 2 | . 2 . Special . | . . . Kinetic 138 | 8 96 34 Thermal 26 | 8 9 9 Explosive 2 | . 2 . Electromagnetic . | . . . Robot Hit Streak 25 | 11 9 25 Robot Miss Streak 3 | 2 3 1 Penetration Max . | . . . Secondary Targets 1 | . . 1 Max Gunslinging Chain 1 | . . 1 Shots Hit Robots 119 | 12 68 39 Core Hits 54 | 6 34 14 Critical Kills 1 | . 1 . Critical Parts Destroyed . | . . . Critical Strikes 2 | . 2 . Burn 1 | . 1 . Destroy 1 | . 1 . Melee Attacks . | . . . Impact . | . . . Slashing . | . . . Piercing . | . . . Sneak Attacks . | . . . Combat Hostiles . | . . . Follow-up Attacks . | . . . Damage Inflicted 1483 | 122 950 411 Guns 1236 | 122 703 411 Cannons . | . . . Explosions 247 | . 247 . Melee . | . . . Ramming . | . . . Kinetic 949 | 45 630 274 Thermal 287 | 77 73 137 Explosive 247 | . 247 . Electromagnetic . | . . . Impact . | . . . Slashing . | . . . Piercing . | . . . Highest Corruption 2 | . 2 2 Average Corruption 2 | . 2 2 Corruption Purged . | . . . Corruption Blocked . | . . . Effects 21 | . 12 9 Message Errors 5 | . 4 1 Matter Fused 7 | . 4 3 Heat Flow Errors 2 | . 1 1 Energy Discharges 3 | . 2 1 Parts Rejected 1 | . 1 . Data Loss (minor) 1 | . . 1 Data Loss (major) 1 | . . 1 Weapon Failures 1 | . . 1 Overload Shots . | . . . Overflow Damage . | . . . Projectiles . | . . . Explosions . | . . . Melee . | . . . Knockbacks . | . . . Impact . | . . . Kinetic . | . . . Secondary . | . . . Self-Inflicted Damage . | . . . Shots . | . . . Rammed 1 | . 1 . Targets Rammed 1 | . 1 . Kicked . | . . . Crushed . | . . . Highest Temperature 273 | 36 233 273 Average Temperature 27 | 14 24 234 Received Heat Transfer 483 | . 333 150 Effects 1 | . 1 . Energy Bleed 1 | . 1 . Siege Activations . | . . . Martial Activations . | . . . Shielding Activations . | . . . Robots Disrupted . | . . . Combat Hostiles . | . . . Robots Corrupted . | . . . Combat Hostiles . | . . . Parts Fried . | . . . Impact Corruptions . | . . . Robots Melted . | . . . Combat Hostiles . | . . . Parts Melted . | . . . Heat Transferred 693 | 222 296 175 Parts Sabotaged . | . . . Parts Stolen . | . . . Parts Stripped . | . . . Power Chain Reactions . | . . . Alert | -11 -10 -10 ------- Run | Yrd Mat Sub Maximum Alert Level . | . . . Low Security (%) 100 | 100 100 . Level 1 . | . . . Level 2 . | . . . Level 3 . | . . . Level 4 . | . . . Level 5 . | . . . High Security . | . . . Max Security . | . . . Peak Influence 135 | 10 135 . Initial . | . . . Average 34 | 1 37 . Influence Increases 422 | 25 397 . Destroy 0b10 Robot/C 280 | . 280 . Destroy 0b10 Robot/NC 40 | 25 15 . Destroy Leader 66 | . 66 . Successful Hack 24 | . 24 . Destroy Structure 12 | . 12 . Influence Decreases 422 | 25 396 1 Entered New Map 1 | . . 1 Time Decay 391 | 25 366 . Lost Part 30 | . 30 . Squads Dispatched 2 | . 2 . Investigation . | . . . Extermination . | . . . Reinforcement 2 | . 2 . Assault . | . . . Garrison . | . . . Intercept . | . . . Searches Triggered . | . . . Construction Impeded . | . . . Haulers Reinforced . | . . . Active Scanning Responses . | . . . Cargo Convoy Interrupts . | . . . Stealth | -11 -10 -10 --------- Run | Yrd Mat Sub Distress Signals 1 | . 1 . Communications Jammed . | . . . Distress Signals . | . . . Times Spotted 31 | . 24 7 Peak Tracking Total 5 | . 5 2 Tactical Retreats . | . . . Traps | -11 -10 -10 ------- Run | Yrd Mat Sub Traps Triggered 6 | . 6 . Indirectly . | . . . Trap Hack Attempts . | . . . Triggered . | . . . Disarmed . | . . . Reprogrammed . | . . . Reused . | . . . Traps Extracted . | . . . Installed . | . . . Triggered . | . . . Machines | -11 -10 -10 ---------- Run | Yrd Mat Sub Machines Disabled . | . . . Max in Single Turn . | . . . Machines Repaired . | . . . Machines Dismantled . | . . . Machines Sabotaged . | . . . Overloaded Fab Kills . | . . . Hacking | -11 -10 -10 --------- Run | Yrd Mat Sub Machines Accessed 6 | . 6 . Terminals 6 | . 6 . Fabricators . | . . . Repair Stations . | . . . Recycling Units . | . . . Scanalyzers . | . . . Garrison Access . | . . . Total Hacks 14 | . 14 . Successful 9 | . 9 . Failed 5 | . 5 . Catastrophic . | . . . Database Lockouts . | . . . Manual 14 | . 14 . Terminals 14 | . 14 . Fabricators . | . . . Repair Stations . | . . . Recycling Units . | . . . Scanalyzers . | . . . Garrison Access . | . . . Terminal Hacks . | . . . Fabricator Hacks . | . . . Repair Station Hacks . | . . . Recycling Unit Hacks . | . . . Scanalyzer . | . . . Garrison Access Hacks . | . . . Unauthorized Hacks 9 | . 9 . Terminals 9 | . 9 . Botnet 3 | . 3 . Skim 6 | . 6 . Fabricators . | . . . Repair Stations . | . . . Recycling Units . | . . . Scanalyzers . | . . . Garrison Access . | . . . Data Cores Recovered . | . . . Used . | . . . Hacking Detections 4 | . 4 . Full Trace Events . | . . . Feedback Events . | . . . Feedback Blocked . | . . . Robot Schematics Acquired . | . . . Robots Built . | . . . Authchips . | . . . Time . | . . . Total Robot Build Rating . | . . . Part Schematics Acquired . | . . . Parts Built . | . . . Authchips . | . . . Time . | . . . Total Part Build Rating . | . . . Part Studies Acquired . | . . . Parts Repaired . | . . . Time . | . . . Parts Recycled . | . . . Recycled Matter . | . . . Retrieved Matter . | . . . Retrieved Components . | . . . Parts Scanalyzed . | . . . Part Schematics Acquired . | . . . Parts Damaged . | . . . Bothacking | -11 -10 -10 ------------ Run | Yrd Mat Sub Used RIF Installer . | . . . Robots Hacked . | . . . Non-combat . | . . . Combat . | . . . Robot Hacks Applied . | . . . Relay Couplers Released . | . . . Fabnet Peak Effective % . | . . . Robots Rewired . | . . . Allies Hacked . | . . . Hacks Repelled . | . . . Allies | -11 -10 -10 -------- Run | Yrd Mat Sub Total Allies . | . . . Largest Group . | . . . Highest-Rated Group . | . . . Highest-Rated Ally . | . . . Total Orders . | . . . Ally Attacks . | . . . Total Damage . | . . . Kills . | . . . Allies Corrupted . | . . . Allies Melted . | . . . Intel | -11 -10 -10 ------- Run | Yrd Mat Sub Active Infowar (turns) 1737 | 53 1520 164 Seismic 1737 | 53 1520 164 Robot Analysis Total . | . . . Derelict Logs Recovered 2 | . . 2 Drone Launches . | . . . Drone Recoveries . | . . . Exploration | -11 -10 -10 ------------- Run | Yrd Mat Sub Turns Passed 2066 | 150 1528 388 Spaces Moved 944 | 77 666 201 Core 19 | 18 1 . Treads 752 | 59 624 69 Legs . | . . . Wheels 173 | . 41 132 Hover . | . . . Flight . | . . . Fastest Speed 50 | 50 100 115 Average Speed 149 | 138 156 130 Slowest Speed 160 | 160 160 160 Overloaded Moves . | . . . Propulsion Burnouts . | . . . Robots Hopped . | . . . Potential Cave-ins . | . . . Cave-ins Triggered . | . . . Exploration Rate (%) 40 | 5 96 19 Regions Visited 2 Branch Regions 1 Pre-discovered Areas 2 | . 2 . Known Exits Taken . | . . . Unknown Exits Taken 2 | 1 1 . Scrap Searched 2 | . . 2 Spaces Dug . | . . . Terrain Destroyed 14 | . 14 . Melee . | . . . Projectile . | . . . AOE 14 | . 14 . Terrain Rammed . | . . . Walls Destroyed . | . . . Machines Disabled . | . . . Actions | -11 -10 -10 --------- Run | Yrd Mat Sub Total 1449 | 104 1053 292 Wait 340 | . 287 53 Move 942 | 76 665 201 Hop . | . . . Pick Up 36 | 13 16 7 Fast Attach 7 | 1 6 . Attach 19 | 6 9 4 Detach . | . . . Swap 10 | . 7 3 Drop 9 | . 7 2 Fire 85 | 8 55 22 Melee . | . . . Ram . | . . . Kick . | . . . Crush 1 | . 1 . Escape Stasis . | . . . Rewire . | . . . Trap . | . . . Miscellaneous . | . . . Route ------- -11/Scrapyard -10/Materials (discovered 5 exits: [*Mat x3] / [*Min] / [*Sub]) -10/Subcaves (discovered 3 exits: Mat x2 / Rec) History --------- Turn | Location | Event 8 | -11/Scrapyard | Discovered new exit (range 14) 151 | -11/Scrapyard | Entered Materials 304 | -10/Materials | Build established: Mutant 455 | -10/Materials | Discovered new exit (range 13) 485 | -10/Materials | Discovered new exit (range 11) 740 | -10/Materials | Discovered new exit (range 11) 998 | -10/Materials | Learned location of Storage (-7) 1061 | -10/Materials | Learned Storage trap positions 1161 | -10/Materials | Learned 4 Subcaves zone layouts 1194 | -10/Materials | Learned location of 1 exit from Storage 1219 | -10/Materials | Learned location of Recycling (-7) 1233 | -10/Materials | Learned 4 Subcaves zone layouts 1292 | -10/Materials | Learned 4 Recycling zone layouts 1337 | -10/Materials | Learned location of 1 exit from Recycling 1394 | -10/Materials | Learned Storage stockpile data 1397 | -10/Materials | Discovered new exit (range 10) 1513 | -10/Materials | Core integrity fell below 50% 1556 | -10/Materials | Discovered new exit (range 11) 1679 | -10/Materials | Entered Subcaves 1680 | -10/Subcaves | Identified exit to Recycling 1681 | -10/Subcaves | Identified exit to Materials 1698 | -10/Subcaves | A swath of the cavern ceiling suddenly collapsed 1856 | -10/Subcaves | Core integrity fell below 20% 1912 | -10/Subcaves | Lost 4 parts (2n1u1w) 1950 | -10/Subcaves | Shifting Twisted Machinery released Battle Rifle 1955 | -10/Subcaves | Shifting Twisted Machinery released Hvy. Battle Rifle 2000 | -10/Subcaves | Build established: Scavenger-Mutant 2000 | -10/Subcaves | Learned Materials emergency access door positions 2006 | -10/Subcaves | Learned Materials garrison access intel 2062 | -10/Subcaves | Visited 4L-MR0's lab 2067 | -10/Subcaves | Destroyed by 25-LH7(R) with Subdweller Machine Gun Last Messages --------------- 01980_ Acquired 58 matter. 01981_ Acquired 48 matter. 02000_ Acquired derelict log, extracted data. Data stored: Materials emergency access points. 02006_ Acquired derelict log, extracted data. Data stored: Materials garrison access intel. 02011_ System corrupted: Substantial component data lost. 02027_ System corrupted: Energy discharge (-46). 02055_ Searching scrap... 02055_ Found Battle Cannon. 02055_ Found 48 Matter. 02057_ Searching scrap... 02057_ Found Sub. Optics. 02057_ Found Barrage Gun. 02057_ Found 67 Matter. 02058_ Subatomizers dissect the Sub. Optics. 02062_ TC-7X8(R) destroyed. 02063_ Lgt. Nuclear Core destroyed. 02064_ System corrupted: Heat flow error (+292). 02065_ System corrupted: Sub. Laser failed to cycle. Map ----- +----------------------------------------------------+ | ?????????????????????? ##?# ##??? | | ?????????????????????? #?# ####??? | | ?????????????????????? #?### #?# ??? | | ?????????????????????? ###???## ####??? | | ?????????????????????? ###??????# #????? | | ?????????????????????? ########## #?#??? | | ??????????????????????## ## ## # #?#??? | | ???????????????????????## ###??? | | ????????????????????????# ??? | | ????????????????????????# # # ## ## ??? | | ????????????????????????## ######## ## ??? | | ?????????????????????????####?##### ??? | | ??????????????????????????????# ??? | | ??????????????????????????????## ??? | | ???????????????????????????????#### ??? | | ??????????????????????????????????## #??? | | ???????????????????????????????????###### ####??? | | ????????????????????????????????????????####?????? | | ?????????????????????????????????????????????????? | | ?????????????????????????????????????????????????? | | ?????????????????????????????????????????????????? | | ???????????????????????##############????????????? | | ???????????????????????##" """"""#" #????????????? | | ???????????????????????##" "X" "]#????????????? | | ??????????????????????##### &[ ###????????????? | | ??????????????????????#< @R R%= #??????????????? | | ??????????????????????# <#########???????????????? | | ??????????????????????#<[####????### #???????????? | | ??????????????????????#